{"text_format":"1","workbook":"xlsx","n_sheets":1,"sheets":["Presupuesto Proyecto Bb"],"not_rendered":{"charts":0,"images":2,"macros":1,"external_links":0,"defined_names":5,"comments":1,"pivot_tables":0},"unopened":[],"bounds":{"document_bytes":16777216,"sheet_cells":100000,"rows_first":2000,"rows_last":500,"rows_between":2000,"halvings":0,"cell_chars":16384,"cell_head_chars":4096},"cells_cut":0,"cells_raw":0,"read":"whole","date_system":"1900"}

{"sheet":"Presupuesto Proyecto Bb","index":0,"n_rows":186,"n_cols":6,"rows_kept":186,"cut":false,"hidden":false,"merged":[]}
[null,null,null,null,null,"Documento básico 3"]
[null,null,null,null,null,"Ámbito temático \"B\": Intercooperación"]
["Subvencions de l'Ajuntament de Barcelona per a",null,null,null,null,"Modalidad \"b\": Proyectos de intercooperación promovidos por entidades y empresas de la enconomia social"]
["la promoció i reforç de l'economia social i solidària 2019",null,null,null,null,"Se deben rellenar las celdas en blanco, y añadir filas en caso que sea necesario."]
[null,null,null,null,null,"Consultar anotaciones a pie de página antes de completar los datos."]
[null,null,null,null,null," "]
[null,null,null,null,null," "]
["DATOS BÁSICOS"]
["Nombre de la persona jurídica/física",null,null,null,null,"  "]
["NIF de la persona jurídica/física"]
["Denominación del proyecto"]
["Importe total del proyecto"]
["Importe imputable a la subvención municipal"]
["% de l’Importe solicitado a la subvención municipal a cambiar en REC (Recurs Econòmic Ciutadà) "]
["Importe de l'aportació / Cofinanciación de la entidad"]
["% de l'Importe solicitado respecto al total del proyecto",{"$f":"B13/B12","v":{"$error":"#DIV/0!"}}]
["Fecha de inicio del proyecto subvencionado (dd/mm/aaaa)"]
["Fecha de fin del proyecto subvencionado (dd/mm/aaaa)"]
[]
["PREVISIÓN DE GASTOS DEL PROYECTO"]
[]
["Partidas","Importe total del proyecto","Importe imputable a la subvención municipal","Importe de l'aportació / Cofinanciación de la entidad"]
["D1.  Nóminas y seguridad social IRPF (régimen general o régimen autónomos) del personal propio vinculado al proyecto",{"$f":"SUM(DespesesProjecte[[#This Row],[Importe imputable a la subvención municipal]],DespesesProjecte[[#This Row],[Importe de l''aportació / Cofinanciación de la entidad]])","v":0},{"$f":"SUM(C24:C28)","v":0},{"$f":"SUM(D24:D28)","v":0}]
[]
[]
[]
[]
[]
["TOTAL DE GASTOS DEL PERSONAL (Max 50% del importe imputable a la subvención municipal)",{"$f":"SUM(B23)","v":0},{"$f":"SUM(C23,C104)","v":0},{"$f":"SUM(D23)","v":0}]
["D2.  Trabajos realizados por profesionales y empesas externas directamente vinculados al proyecto",{"$f":"SUM(DespesesProjecte[[#This Row],[Importe imputable a la subvención municipal]],DespesesProjecte[[#This Row],[Importe de l''aportació / Cofinanciación de la entidad]])","v":0},{"$f":"SUM(C31:C35)","v":0},{"$f":"SUM(D31:D35)","v":0}]
[]
[]
[]
[]
[]
["D3. Alquiler de bienes muebles/inmuebles directamente vinculados al proyecto.",{"$f":"SUM(DespesesProjecte[[#This Row],[Importe imputable a la subvención municipal]],DespesesProjecte[[#This Row],[Importe de l''aportació / Cofinanciación de la entidad]])","v":0},{"$f":"SUM(C37:C41)","v":0},{"$f":"SUM(D37:D41)","v":0}]
[]
[]
[]
[]
[]
["D4. Adquisición de materiales y bienes consumibles íntegramente imputables al proyecto.",{"$f":"SUM(DespesesProjecte[[#This Row],[Importe imputable a la subvención municipal]],DespesesProjecte[[#This Row],[Importe de l''aportació / Cofinanciación de la entidad]])","v":0},{"$f":"SUM(C43:C47)","v":0},{"$f":"SUM(D43:D47)","v":0}]
[]
[]
[]
[]
[]
["D5. Transport – missatgeria imputables al projecte",{"$f":"SUM(DespesesProjecte[[#This Row],[Importe imputable a la subvención municipal]],DespesesProjecte[[#This Row],[Importe de l''aportació / Cofinanciación de la entidad]])","v":0},{"$f":"SUM(C49:C53)","v":0},{"$f":"SUM(D49:D53)","v":0}]
[]
[]
[]
[]
[]
["D6.  Publicidad y propaganda de las actividades vinculadas al proyecto.",{"$f":"SUM(DespesesProjecte[[#This Row],[Importe imputable a la subvención municipal]],DespesesProjecte[[#This Row],[Importe de l''aportació / Cofinanciación de la entidad]])","v":0},{"$f":"SUM(C55:C59)","v":0},{"$f":"SUM(D55:D59)","v":0}]
[]
[]
[]
[]
[]
["D7.  Alojamiento y dietas del personal contratado y voluntarios",{"$f":"SUM(DespesesProjecte[[#This Row],[Importe imputable a la subvención municipal]],DespesesProjecte[[#This Row],[Importe de l''aportació / Cofinanciación de la entidad]])","v":0},{"$f":"SUM(C61:C65)","v":0},{"$f":"SUM(D61:D65)","v":0}]
[]
[]
[]
[]
[]
["D8.  Ayudas al transporte para los/as participantes de los proyectos en caso que sea necesario de manera justificada",{"$f":"SUM(DespesesProjecte[[#This Row],[Importe imputable a la subvención municipal]],DespesesProjecte[[#This Row],[Importe de l''aportació / Cofinanciación de la entidad]])","v":0},{"$f":"SUM(C67:C71)","v":0},{"$f":"SUM(D67:D71)","v":0}]
[]
[]
[]
[]
[]
["D9.  Viajes y desplazamientos imputables a las actividades del proyecto.",{"$f":"SUM(DespesesProjecte[[#This Row],[Importe imputable a la subvención municipal]],DespesesProjecte[[#This Row],[Importe de l''aportació / Cofinanciación de la entidad]])","v":0},{"$f":"SUM(C73:C77)","v":0},{"$f":"SUM(D73:D77)","v":0}]
[]
[]
[]
[]
[]
["D10. Tributs, quan siguin abonats directament per la persona jurídica o física beneficiària",{"$f":"SUM(DespesesProjecte[[#This Row],[Importe imputable a la subvención municipal]],DespesesProjecte[[#This Row],[Importe de l''aportació / Cofinanciación de la entidad]])","v":0},{"$f":"SUM(C79:C83)","v":0},{"$f":"SUM(D79:D83)","v":0}]
[]
[]
[]
[]
[]
["D11.  Gastos del informe de auditoria, cuando sea obligatoria su presentación por el importe de la subvención. ",{"$f":"SUM(DespesesProjecte[[#This Row],[Importe imputable a la subvención municipal]],DespesesProjecte[[#This Row],[Importe de l''aportació / Cofinanciación de la entidad]])","v":0},{"$f":"SUM(C85:C89)","v":0},{"$f":"SUM(D85:D89)","v":0}]
[]
[]
[]
[]
[]
["D12.  Otros gastos que de manera justificada y por la tipologia del proyecto puedan imputarse directamente al proyecto.",{"$f":"SUM(DespesesProjecte[[#This Row],[Importe imputable a la subvención municipal]],DespesesProjecte[[#This Row],[Importe de l''aportació / Cofinanciación de la entidad]])","v":0},{"$f":"SUM(C91:C95)","v":0},{"$f":"SUM(D91:D95)","v":0}]
[]
[]
[]
[]
[]
["D13. Aportaciones a fondos de contigencia ",{"$f":"SUM(DespesesProjecte[[#This Row],[Importe imputable a la subvención municipal]],DespesesProjecte[[#This Row],[Importe de l''aportació / Cofinanciación de la entidad]])","v":0},{"$f":"SUM(C97:C101)","v":0},{"$f":"SUM(D97:D101)","v":0}]
[]
[]
[]
[]
[]
["TOTAL DE OTROS GASTOS DIRECTOS",{"$f":"SUM(B30,B36,B42,B48,B54,B60,B66,B72,B78,B84,B90,B96)","v":0},{"$f":"SUM(C30,C36,C42,C48,C54,C60,C66,C72,C78,C84,C90,C96)","v":0},{"$f":"SUM(D30,D36,D42,D48,D54,D60,D66,D72,D78,D84,D90,D96)","v":0}]
["TOTAL GASTOS DIRECTOS (los que se identifiquen directament con el proyecto)",{"$f":"SUM(B29,B102)","v":0},{"$f":"SUM(C29,C102)","v":0},{"$f":"SUM(D29,,D102)","v":0}]
["I1. Personal de soporte al proyecto (Nóminas y seguridad social)",{"$f":"SUM(DespesesProjecte[[#This Row],[Importe imputable a la subvención municipal]],DespesesProjecte[[#This Row],[Importe de l''aportació / Cofinanciación de la entidad]])","v":0},{"$f":"SUM(C105:C109)","v":0},{"$f":"SUM(D105:D109)","v":0}]
[]
[]
[]
[]
[]
["I.2  Seguros",{"$f":"SUM(DespesesProjecte[[#This Row],[Importe imputable a la subvención municipal]],DespesesProjecte[[#This Row],[Importe de l''aportació / Cofinanciación de la entidad]])","v":0},{"$f":"SUM(C111:C115)","v":0},{"$f":"SUM(D111:D115)","v":0}]
[]
[]
[]
[]
[]
["I.3  Amortitzación",{"$f":"SUM(DespesesProjecte[[#This Row],[Importe imputable a la subvención municipal]],DespesesProjecte[[#This Row],[Importe de l''aportació / Cofinanciación de la entidad]])","v":0},{"$f":"SUM(C117:C121)","v":0},{"$f":"SUM(D117:D121)","v":0}]
[]
[]
[]
[]
[]
["I.4  Alquiler de bienes inmuebles",{"$f":"SUM(DespesesProjecte[[#This Row],[Importe imputable a la subvención municipal]],DespesesProjecte[[#This Row],[Importe de l''aportació / Cofinanciación de la entidad]])","v":0},{"$f":"SUM(C123:C127)","v":0},{"$f":"SUM(D123:D127)","v":0}]
[]
[]
[]
[]
[]
["I.5  Adquisición  de materiales y bienes consumibles parcialmente imputables al proyecto",{"$f":"SUM(DespesesProjecte[[#This Row],[Importe imputable a la subvención municipal]],DespesesProjecte[[#This Row],[Importe de l''aportació / Cofinanciación de la entidad]])","v":0},{"$f":"SUM(C129:C133)","v":0},{"$f":"SUM(D129:D133)","v":0}]
[]
[]
[]
[]
[]
["I.6  Mantenimiento de edificios i/o instalaciones",{"$f":"SUM(DespesesProjecte[[#This Row],[Importe imputable a la subvención municipal]],DespesesProjecte[[#This Row],[Importe de l''aportació / Cofinanciación de la entidad]])","v":0},{"$f":"SUM(C135:C139)","v":0},{"$f":"SUM(D135:D139)","v":0}]
[]
[]
[]
[]
[]
["I.7  Comunicaciones (teléfono, correos, conexión a internet)",{"$f":"SUM(DespesesProjecte[[#This Row],[Importe imputable a la subvención municipal]],DespesesProjecte[[#This Row],[Importe de l''aportació / Cofinanciación de la entidad]])","v":0},{"$f":"SUM(C141:C145)","v":0},{"$f":"SUM(D141:D145)","v":0}]
[]
[]
[]
[]
[]
["I.8  Gastos financieros",{"$f":"SUM(DespesesProjecte[[#This Row],[Importe imputable a la subvención municipal]],DespesesProjecte[[#This Row],[Importe de l''aportació / Cofinanciación de la entidad]])","v":0},{"$f":"SUM(C147:C151)","v":0},{"$f":"SUM(D147:D151)","v":0}]
[]
[]
[]
[]
[]
["I.9  Suministros",{"$f":"SUM(DespesesProjecte[[#This Row],[Importe imputable a la subvención municipal]],DespesesProjecte[[#This Row],[Importe de l''aportació / Cofinanciación de la entidad]])","v":0},{"$f":"SUM(C153:C157)","v":0},{"$f":"SUM(D153:D157)","v":0}]
[]
[]
[]
[]
[]
["I.10   Trabajos realizados por otras empresas, parcialmente imputables a al proyecto (limpieza, seguridad...)",{"$f":"SUM(DespesesProjecte[[#This Row],[Importe imputable a la subvención municipal]],DespesesProjecte[[#This Row],[Importe de l''aportació / Cofinanciación de la entidad]])","v":0},{"$f":"SUM(C159:C163)","v":0},{"$f":"SUM(D159:D163)","v":0}]
[]
[]
[]
[]
[]
["TOTAL GASTOS INDIRECTOS (se podran asignara la proyecto haciendo uso de un porcentaje de asignación) - Máximo 10% del importe imputable a la subvención municipal",{"$f":"SUM(B104,B110,B116,B122,B128,B134,B140,B146,B152,B158)","v":0},{"$f":"SUM(C104,C110,C116,C122,C128,C134,C140,C146,C152,C158)","v":0},{"$f":"SUM(D104,D110,D116,D122,D128,D134,D140,D146,D152,D158)","v":0}]
["TOTAL DE GASTOS PREVISTOS",{"$f":"SUM(B164,B103)","v":0},{"$f":"SUM(C164,C103)","v":0},{"$f":"SUM(D164,D103)","v":0}]
[]
[]
["1.  La cuantía de la subvención otorgada no superará el 80% del gasto total del proyecto a subvencionar. "]
["2.  El importe máximo de subvención para la modalidad \"b\" del ámbito temático de Intercooperación (Bb) es de 18.000 €."]
["3.  En caso que la solicitud presentada sobrepase el importe máximo, se considerará como importe solicitado el máximo de lo establecido en la convocatoria. "]
["4.  Se limita a un  máximo del 50%  el importe de la subvención para gastos de personal propio que participa de forma directa y debidamente en el proyecto."]
["5.  La suma de personal propio asignado al proyecto (de la entidad solicitante y participantes del acuerdo de cooperación) no podrá superar el 50% del importe de la subvención."]
["6.  En esta modalidad se aceptará la impoutacion de gastos de personal propio de las entidades participantes del acuerdo de cooperación."]
["7.  El carácter subvencionable del gasto de amortización estará sujeto a las condiciones siguientes:"]
["- Que las subvenciones no hayan contribuidio a la compra de bienes."]
["- Que la amortitzación se calcula de conformidad con las normas de compatibilidad generalmente aceptadas. "]
["- Que el coste se refiera al periodo subvencionable."]
["8. En ningún caso se considerarán gastos subvencionables:"]
["- Los impuestos indirectos cuando sean susceptibles de recuperación o compensación, ni los impuestos sobre la renta. "]
["- Los gastos de inversión, incluidas las adquisiciones de bienes muebles. "]
["- Los gastos realizados con fecha anterior al inicio del proyecto y fecha posterior a la fecha de finalización del proyecto. "]
["- Otros gastos Que se indiquen en la convocatoria."]
["9.    Es necesario acompañar la solicitud de subvención con un certificado de participación en  el acuerdo de cooperación firmado por los representantes legales de la entidad."]
["10.  No seran elegibles factures de empresas emitidas entre las entidades participantes del acuerdo de cooperación."]
["11.  Cuando algún gasto sea superior a 12.000€ sin IVA, en el caso de prestaciones de servicios o libramiento de bienes, y para aquellos gastos de más de 30.000 €, sin IVA, en el caso "]
["      de ejecución de obras, tendrán que incorporar tres presupuestos solicitados, y argumentar el motivo de la adjudicación, en el caso de no ser la propuesta más ventajosa económicamente."]